[Event "Masters Tournament (MTO)"]
[Site "Biel, Switzerland"]
[Date "2026.07.20"]
[Round "7.12"]
[White "Pleschke, Julius Jonas"]
[Black "Yasaswi, Krishna Bommi"]
[Result "0-1"]
[TimeControl "100+30+30sec/move"]
[WhiteTitle "-"]
[BlackTitle "-"]
[WhiteFideId "54734258"]
[BlackFideId "33368783"]
[WhiteElo "2280"]
[BlackElo "2085"]

1. d4 {[%clk 01:40:57]} {[%emt 00:00:02]} Nf6 {[%clk 01:40:56]} {[%emt
00:00:06]} 2. c4 {[%clk 01:41:22]} {[%emt 00:00:03]} g6 {[%clk 01:41:23]}
{[%emt 00:00:04]} 3. Nc3 {[%clk 01:41:46]} {[%emt 00:00:05]} Bg7 {[%clk
01:41:48]} {[%emt 00:00:06]} 4. Nf3 {[%clk 01:42:11]} {[%emt 00:00:04]} d6
{[%clk 01:42:13]} {[%emt 00:00:07]} 5. Bg5 {[%clk 01:42:24]} {[%emt 00:00:15]}
h6 {[%clk 01:38:17]} {[%emt 00:04:27]} 6. Bh4 {[%clk 01:42:35]} {[%emt
00:00:18]} Nbd7 {[%clk 01:35:46]} {[%emt 00:03:01]} 7. e3 {[%clk 01:42:49]}
{[%emt 00:00:16]} O-O {[%clk 01:35:04]} {[%emt 00:01:11]} 8. Be2 {[%clk
01:43:15]} {[%emt 00:00:05]} e5 {[%clk 01:33:09]} {[%emt 00:02:26]} 9. O-O
{[%clk 01:42:53]} {[%emt 00:00:51]} Re8 {[%clk 01:30:58]} {[%emt 00:02:41]} 10.
Qc2 {[%clk 01:42:02]} {[%emt 00:01:21]} exd4 {[%clk 01:23:38]} {[%emt
00:07:50]} 11. exd4 {[%clk 01:35:26]} {[%emt 00:07:06]} g5 {[%clk 01:20:36]}
{[%emt 00:03:33]} 12. Bg3 {[%clk 01:35:44]} {[%emt 00:00:11]} Nh5 {[%clk
01:18:56]} {[%emt 00:02:10]} 13. Rfd1 {[%clk 01:30:53]} {[%emt 00:05:20]} Ndf6
{[%clk 01:14:08]} {[%emt 00:05:19]} 14. Rac1 {[%clk 01:30:05]} {[%emt
00:01:18]} Nxg3 {[%clk 01:11:38]} {[%emt 00:03:00]} 15. hxg3 {[%clk 01:30:01]}
{[%emt 00:00:34]} Bg4 {[%clk 01:07:09]} {[%emt 00:04:59]} 16. d5 {[%clk
01:21:32]} {[%emt 00:09:00]} Bxf3 {[%clk 01:01:16]} {[%emt 00:06:22]} 17. gxf3
{[%clk 01:13:48]} {[%emt 00:08:14]} Nd7 {[%clk 00:57:27]} {[%emt 00:04:20]} 18.
Nb5 {[%clk 01:13:25]} {[%emt 00:00:53]} a6 {[%clk 00:52:23]} {[%emt 00:05:34]}
19. Nd4 {[%clk 01:13:22]} {[%emt 00:00:24]} Bxd4 {[%clk 00:52:35]} {[%emt
00:00:27]} 20. Rxd4 {[%clk 01:13:49]} {[%emt 00:00:02]} Qf6 {[%clk 00:52:29]}
{[%emt 00:00:35]} 21. Rcd1 {[%clk 01:12:19]} {[%emt 00:02:01]} Re7 {[%clk
00:45:59]} {[%emt 00:07:00]} 22. f4 {[%clk 00:53:18]} {[%emt 00:19:31]} Rae8
{[%clk 00:40:30]} {[%emt 00:05:59]} 23. Bf1 {[%clk 00:51:09]} {[%emt 00:02:39]}
a5 {[%clk 00:34:19]} {[%emt 00:06:42]} 24. a3 {[%clk 00:47:45]} {[%emt
00:03:54]} Kg7 {[%clk 00:31:56]} {[%emt 00:02:51]} 25. b4 {[%clk 00:41:56]}
{[%emt 00:06:20]} axb4 {[%clk 00:30:53]} {[%emt 00:01:34]} 26. axb4 {[%clk
00:42:25]} {[%emt 00:00:01]} b6 {[%clk 00:29:25]} {[%emt 00:01:57]} 27. Kg2
{[%clk 00:32:10]} {[%emt 00:10:45]} Kh8 {[%clk 00:22:52]} {[%emt 00:07:03]} 28.
Qd2 {[%clk 00:31:51]} {[%emt 00:00:49]} Re4 {[%clk 00:19:16]} {[%emt 00:04:06]}
29. Rxe4 {[%clk 00:28:05]} {[%emt 00:04:16]} Rxe4 {[%clk 00:19:38]} {[%emt
00:00:07]} 30. Bd3 {[%clk 00:28:32]} {[%emt 00:00:04]} Rd4 {[%clk 00:16:19]}
{[%emt 00:03:50]} 31. Qe3 {[%clk 00:28:22]} {[%emt 00:00:39]} Kg7 {[%clk
00:13:32]} {[%emt 00:03:17]} 32. fxg5 {[%clk 00:21:34]} {[%emt 00:07:18]} hxg5
{[%clk 00:13:56]} {[%emt 00:00:06]} 33. Rh1 {[%clk 00:21:55]} {[%emt 00:00:09]}
Qe5 {[%clk 00:09:41]} {[%emt 00:04:45]} 34. Rh7+ {[%clk 00:00:53]} {[%emt
00:21:33]} Kg8 {[%clk 00:09:15]} {[%emt 00:00:55]} 35. Qf3 {[%clk 00:00:50]}
{[%emt 00:00:33]} Nf6 {[%clk 00:09:31]} {[%emt 00:00:15]} 36. Rh6 {[%clk
00:00:37]} {[%emt 00:00:43]} Kg7 {[%clk 00:09:01]} {[%emt 00:00:59]} 37. Rh1
{[%clk 00:00:47]} {[%emt 00:00:18]} g4 {[%clk 00:06:54]} {[%emt 00:02:40]} 38.
Qd1 {[%clk 00:00:39]} {[%emt 00:00:37]} b5 {[%clk 00:04:58]} {[%emt 00:02:26]}
39. Qd2 {[%clk 00:00:38]} {[%emt 00:00:32]} Ng8 {[%clk 00:04:25]} {[%emt
00:01:02]} 40. Re1 {[%clk 00:00:33]} {[%emt 00:00:35]} Rxd3 {[%clk 00:03:30]}
{[%emt 00:01:25]} 41. Qxd3 {[%clk 00:28:01]} {[%emt 00:03:02]} Qxe1 {[%clk
00:32:31]} {[%emt 00:01:29]} 42. Qf5 {[%clk 00:27:48]} {[%emt 00:00:42]} Nh6
{[%clk 00:26:18]} {[%emt 00:06:44]} 43. Qg5+ {[%clk 00:26:27]} {[%emt
00:01:51]} Kh7 {[%clk 00:26:41]} {[%emt 00:00:07]} 44. cxb5 {[%clk 00:26:38]}
{[%emt 00:00:19]} Qxb4 {[%clk 00:26:47]} {[%emt 00:00:24]} 45. Qe7 {[%clk
00:26:28]} {[%emt 00:00:40]} Qxb5 {[%clk 00:26:14]} {[%emt 00:01:03]} 46. Qxc7
{[%clk 00:26:54]} {[%emt 00:00:04]} Qxd5+ {[%clk 00:26:37]} {[%emt 00:00:07]}
47. Kh2 {[%clk 00:27:13]} {[%emt 00:00:11]} Qc5 {[%clk 00:26:26]} {[%emt
00:00:41]} 48. Qe7 {[%clk 00:27:12]} {[%emt 00:00:31]} Qxf2+ {[%clk 00:26:37]}
{[%emt 00:00:18]} 49. Kh1 {[%clk 00:27:40]} {[%emt 00:00:02]} Qf3+ {[%clk
00:26:38]} {[%emt 00:00:30]} 50. Kh2 {[%clk 00:28:01]} {[%emt 00:00:09]} d5
{[%clk 00:26:55]} {[%emt 00:00:13]} 51. Qe1 {[%clk 00:27:08]} {[%emt 00:01:22]}
d4 {[%clk 00:26:22]} {[%emt 00:01:04]} 52. Qf1 {[%clk 00:27:34]} {[%emt
00:00:04]} d3 {[%clk 00:26:36]} {[%emt 00:00:15]} 53. Qb1 {[%clk 00:27:14]}
{[%emt 00:00:50]} Nf5 {[%clk 00:26:23]} {[%emt 00:00:44]} 54. Qb3 {[%clk
00:27:39]} {[%emt 00:00:06]} Qxg3+ {[%clk 00:25:48]} {[%emt 00:01:04]} 55. Kh1
{[%clk 00:28:00]} {[%emt 00:00:08]} Qe1+ {[%clk 00:26:11]} {[%emt 00:00:08]} 56.
Kg2 {[%clk 00:28:08]} {[%emt 00:00:22]} Ne3+ {[%clk 00:26:27]} {[%emt
00:00:15]} 0-1

[Event "Masters Tournament (MTO)"]
[Site "Biel, Switzerland"]
[Date "2026.07.20"]
[Round "7.13"]
[White "Vihaan, Dumir"]
[Black "Nguyen, Thi Mai Hung"]
[Result "1-0"]
[TimeControl "100+30+30sec/move"]
[WhiteTitle "-"]
[BlackTitle "-"]
[WhiteFideId "25901010"]
[BlackFideId "12401676"]
[WhiteElo "2132"]
[BlackElo "2260"]

1. e4 {[%clk 01:40:59]} {[%emt 00:37:28]} e6 {[%clk 01:39:32]} {[%emt
00:01:28]} 2. d4 {[%clk 01:41:16]} {[%emt 00:00:13]} d5 {[%clk 01:39:59]}
{[%emt 00:00:04]} 3. e5 {[%clk 01:41:41]} {[%emt 00:00:04]} c5 {[%clk
01:40:24]} {[%emt 00:00:05]} 4. c3 {[%clk 01:42:07]} {[%emt 00:00:05]} Nc6
{[%clk 01:40:35]} {[%emt 00:00:18]} 5. Nf3 {[%clk 01:42:25]} {[%emt 00:00:12]}
Qb6 {[%clk 01:38:33]} {[%emt 00:02:32]} 6. Bd3 {[%clk 01:42:44]} {[%emt
00:00:11]} cxd4 {[%clk 01:37:41]} {[%emt 00:01:22]} 7. O-O {[%clk 01:43:07]}
{[%emt 00:00:07]} Bd7 {[%clk 01:36:57]} {[%emt 00:01:15]} 8. Re1 {[%clk
01:43:29]} {[%emt 00:00:08]} Nge7 {[%clk 01:33:21]} {[%emt 00:04:06]} 9. h4
{[%clk 01:43:48]} {[%emt 00:00:10]} Nf5 {[%clk 01:29:42]} {[%emt 00:04:09]} 10.
Bxf5 {[%clk 01:42:27]} {[%emt 00:01:51]} exf5 {[%clk 01:30:10]} {[%emt
00:00:02]} 11. cxd4 {[%clk 01:42:37]} {[%emt 00:00:20]} Be7 {[%clk 01:30:13]}
{[%emt 00:00:28]} 12. Nc3 {[%clk 01:42:59]} {[%emt 00:00:08]} Be6 {[%clk
01:30:34]} {[%emt 00:00:09]} 13. h5 {[%clk 01:43:11]} {[%emt 00:00:17]} O-O
{[%clk 01:23:00]} {[%emt 00:08:05]} 14. Ne2 {[%clk 01:43:06]} {[%emt 00:00:34]}
Rfc8 {[%clk 01:20:10]} {[%emt 00:03:21]} 15. Nf4 {[%clk 01:42:28]} {[%emt
00:01:07]} Rc7 {[%clk 01:18:42]} {[%emt 00:01:59]} 16. Re2 {[%clk 01:38:10]}
{[%emt 00:04:47]} Rac8 {[%clk 01:16:48]} {[%emt 00:02:25]} 17. Be3 {[%clk
01:37:21]} {[%emt 00:01:17]} Na5 {[%clk 01:15:18]} {[%emt 00:02:01]} 18. Bd2
{[%clk 01:00:14]} {[%emt 00:37:33]} Nc4 {[%clk 01:09:51]} {[%emt 00:06:02]} 19.
Bc3 {[%clk 00:57:23]} {[%emt 00:03:21]} a5 {[%clk 01:01:30]} {[%emt 00:08:51]}
20. Qb3 {[%clk 00:46:19]} {[%emt 00:11:32]} Qa6 {[%clk 00:57:16]} {[%emt
00:04:45]} 21. a4 {[%clk 00:45:41]} {[%emt 00:01:08]} Rc6 {[%clk 00:57:13]}
{[%emt 00:00:33]} 22. Rc2 {[%clk 00:32:44]} {[%emt 00:13:25]} g5 {[%clk
00:47:50]} {[%emt 00:09:54]} 23. hxg6 {[%clk 00:32:09]} {[%emt 00:01:05]} hxg6
{[%clk 00:48:15]} {[%emt 00:00:06]} 24. Be1 {[%clk 00:17:33]} {[%emt 00:15:06]}
Nxe5 {[%clk 00:40:16]} {[%emt 00:08:29]} 25. Rxc6 {[%clk 00:17:10]} {[%emt
00:00:53]} Nxf3+ {[%clk 00:33:38]} {[%emt 00:07:08]} 26. Qxf3 {[%clk 00:17:38]}
{[%emt 00:00:01]} bxc6 {[%clk 00:27:59]} {[%emt 00:06:10]} 27. Qe3 {[%clk
00:15:12]} {[%emt 00:02:56]} c5 {[%clk 00:13:49]} {[%emt 00:14:40]} 28. Bc3
{[%clk 00:15:11]} {[%emt 00:00:31]} c4 {[%clk 00:13:36]} {[%emt 00:00:43]} 29.
Nxd5 {[%clk 00:14:43]} {[%emt 00:00:58]} Bxd5 {[%clk 00:13:02]} {[%emt
00:01:04]} 30. Qxe7 {[%clk 00:15:11]} {[%emt 00:00:02]} Qc6 {[%clk 00:12:24]}
{[%emt 00:01:08]} 31. Re1 {[%clk 00:14:55]} {[%emt 00:00:46]} Qxa4 {[%clk
00:09:07]} {[%emt 00:03:48]} 32. f3 {[%clk 00:12:13]} {[%emt 00:03:11]} Ra8
{[%clk 00:05:22]} {[%emt 00:04:15]} 33. Kf2 {[%clk 00:07:27]} {[%emt 00:05:16]}
Qc2+ {[%clk 00:01:26]} {[%emt 00:04:27]} 34. Re2 {[%clk 00:07:36]} {[%emt
00:00:20]} Qb3 {[%clk 00:01:41]} {[%emt 00:00:15]} 35. Re5 {[%clk 00:07:29]}
{[%emt 00:00:37]} Qb7 {[%clk 00:00:37]} {[%emt 00:01:35]} 36. Qd6 {[%clk
00:07:50]} {[%emt 00:00:07]} Bc6 {[%clk 00:00:37]} {[%emt 00:00:31]} 37. Re7
{[%clk 00:06:33]} {[%emt 00:01:46]} Qa6 {[%clk 00:00:33]} {[%emt 00:00:35]} 38.
Qf6 {[%clk 00:06:40]} {[%emt 00:00:22]} Bd5 {[%clk 00:00:43]} {[%emt 00:00:21]}
39. Re8+ {[%clk 00:07:04]} {[%emt 00:00:06]} Rxe8 {[%clk 00:00:56]} {[%emt
00:00:18]} 40. Qxa6 {[%clk 00:07:26]} {[%emt 00:00:08]} 1-0

[Event "Masters Tournament (MTO)"]
[Site "Biel, Switzerland"]
[Date "2026.07.20"]
[Round "7.14"]
[White "Ragavan, Samarth Rajesh"]
[Black "Georgescu, Lena"]
[Result "1/2-1/2"]
[TimeControl "100+30+30sec/move"]
[WhiteTitle "-"]
[BlackTitle "-"]
[WhiteFideId "39918106"]
[BlackFideId "1331973"]
[WhiteElo "2106"]
[BlackElo "2253"]

1. d4 {[%clk 01:40:55]} {[%emt 00:00:03]} Nf6 {[%clk 01:40:55]} {[%emt
00:00:05]} 2. Nf3 {[%clk 01:41:21]} {[%emt 00:00:03]} d5 {[%clk 01:41:19]}
{[%emt 00:00:07]} 3. g3 {[%clk 01:41:47]} {[%emt 00:00:04]} c5 {[%clk
01:41:12]} {[%emt 00:00:37]} 4. c4 {[%clk 01:40:51]} {[%emt 00:01:25]} dxc4
{[%clk 01:39:46]} {[%emt 00:01:58]} 5. Qa4+ {[%clk 01:41:11]} {[%emt 00:00:09]}
Qd7 {[%clk 01:35:18]} {[%emt 00:04:59]} 6. Qxc4 {[%clk 01:41:23]} {[%emt
00:00:17]} cxd4 {[%clk 01:31:40]} {[%emt 00:04:08]} 7. Qxd4 {[%clk 01:40:45]}
{[%emt 00:01:07]} Nc6 {[%clk 01:29:52]} {[%emt 00:02:19]} 8. Qxd7+ {[%clk
01:40:58]} {[%emt 00:00:17]} Bxd7 {[%clk 01:30:12]} {[%emt 00:00:10]} 9. Bg2
{[%clk 01:41:17]} {[%emt 00:00:11]} e6 {[%clk 01:28:27]} {[%emt 00:02:15]} 10.
O-O {[%clk 01:40:54]} {[%emt 00:00:52]} Bc5 {[%clk 01:27:26]} {[%emt 00:01:33]}
11. Nc3 {[%clk 01:37:22]} {[%emt 00:04:02]} O-O {[%clk 01:25:58]} {[%emt
00:01:57]} 12. Bf4 {[%clk 01:35:08]} {[%emt 00:02:45]} Rac8 {[%clk 01:18:27]}
{[%emt 00:08:00]} 13. Rac1 {[%clk 01:35:03]} {[%emt 00:00:35]} Rfd8 {[%clk
01:08:59]} {[%emt 00:09:59]} 14. Rfd1 {[%clk 01:23:40]} {[%emt 00:11:52]} Be8
{[%clk 01:01:22]} {[%emt 00:08:07]} 15. Rxd8 {[%clk 00:59:42]} Rxd8 {[%clk
01:01:24]} {[%emt 00:24:57]} 16. Na4 {[%clk 00:59:22]} {[%emt 00:00:50]} Bd6
{[%clk 00:50:13]} {[%emt 00:11:41]} 17. Bxd6 {[%clk 00:59:13]} {[%emt
00:00:38]} Rxd6 {[%clk 00:50:38]} {[%emt 00:00:04]} 18. Nc5 {[%clk 00:59:26]}
{[%emt 00:00:18]} b6 {[%clk 00:47:07]} {[%emt 00:04:02]} 19. Nd3 {[%clk
00:59:26]} {[%emt 00:00:29]} Kf8 {[%clk 00:42:40]} {[%emt 00:04:57]} 20. Kf1
{[%clk 00:58:55]} {[%emt 00:01:01]} Ke7 {[%clk 00:41:10]} {[%emt 00:02:00]}
1/2-1/2

[Event "Masters Tournament (MTO)"]
[Site "Biel, Switzerland"]
[Date "2026.07.20"]
[Round "7.15"]
[White "Gireada, Daniel"]
[Black "Ashwath, Kaushik"]
[Result "0-1"]
[TimeControl "100+30+30sec/move"]
[WhiteTitle "-"]
[BlackTitle "-"]
[WhiteFideId "1206451"]
[BlackFideId "33387230"]
[WhiteElo "2255"]
[BlackElo "2278"]

1. d4 {[%clk 01:40:55]} {[%emt 00:00:04]} d5 {[%clk 01:40:52]} {[%emt
00:00:09]} 2. c4 {[%clk 01:41:15]} {[%emt 00:00:13]} e6 {[%clk 01:41:17]}
{[%emt 00:00:02]} 3. Nf3 {[%clk 01:41:29]} {[%emt 00:00:15]} Nf6 {[%clk
01:41:41]} {[%emt 00:00:07]} 4. g3 {[%clk 01:41:44]} {[%emt 00:00:15]} Be7
{[%clk 01:40:33]} {[%emt 00:01:38]} 5. Bg2 {[%clk 01:41:57]} {[%emt 00:00:17]}
O-O {[%clk 01:40:49]} {[%emt 00:00:14]} 6. O-O {[%clk 01:41:36]} {[%emt
00:00:52]} c6 {[%clk 01:40:49]} {[%emt 00:00:29]} 7. Qc2 {[%clk 01:36:19]}
{[%emt 00:05:46]} b6 {[%clk 01:39:15]} {[%emt 00:02:05]} 8. Bf4 {[%clk
01:28:07]} {[%emt 00:08:42]} Bb7 {[%clk 01:33:06]} {[%emt 00:06:40]} 9. Nbd2
{[%clk 01:23:15]} {[%emt 00:05:21]} Nh5 {[%clk 01:29:04]} {[%emt 00:04:32]} 10.
Bxb8 {[%clk 01:15:32]} {[%emt 00:08:13]} Rxb8 {[%clk 01:27:15]} {[%emt
00:02:20]} 11. e4 {[%clk 01:15:48]} {[%emt 00:00:13]} c5 {[%clk 01:19:39]}
{[%emt 00:08:07]} 12. cxd5 {[%clk 01:01:46]} {[%emt 00:14:31]} exd5 {[%clk
01:16:27]} {[%emt 00:03:41]} 13. e5 {[%clk 00:59:17]} {[%emt 00:02:59]} g6
{[%clk 01:13:32]} {[%emt 00:03:26]} 14. Rac1 {[%clk 00:46:20]} {[%emt
00:13:28]} Ng7 {[%clk 01:10:34]} {[%emt 00:03:27]} 15. Nb3 {[%clk 00:39:51]}
{[%emt 00:06:59]} Ne6 {[%clk 01:07:34]} {[%emt 00:03:30]} 16. Rcd1 {[%clk
00:39:22]} {[%emt 00:00:58]} a5 {[%clk 01:03:01]} {[%emt 00:05:03]} 17. Qd2
{[%clk 00:38:22]} {[%emt 00:01:30]} a4 {[%clk 00:47:37]} {[%emt 00:15:55]} 18.
Nc1 {[%clk 00:38:39]} {[%emt 00:00:13]} Kg7 {[%clk 00:46:09]} {[%emt 00:01:58]}
19. h4 {[%clk 00:38:41]} {[%emt 00:00:28]} h5 {[%clk 00:41:33]} {[%emt
00:05:06]} 20. Rfe1 {[%clk 00:38:57]} {[%emt 00:00:14]} a3 {[%clk 00:36:32]}
{[%emt 00:05:31]} 21. Ne2 {[%clk 00:36:30]} {[%emt 00:02:57]} axb2 {[%clk
00:35:53]} {[%emt 00:01:09]} 22. Qxb2 {[%clk 00:36:53]} {[%emt 00:00:07]} f6
{[%clk 00:27:43]} {[%emt 00:08:41]} 23. Bh3 {[%clk 00:28:46]} {[%emt 00:08:36]}
f5 {[%clk 00:24:33]} {[%emt 00:03:40]} 24. Bg2 {[%clk 00:26:44]} {[%emt
00:02:32]} f4 {[%clk 00:17:19]} {[%emt 00:07:45]} 25. Kh2 {[%clk 00:24:53]}
{[%emt 00:02:20]} fxg3+ {[%clk 00:16:10]} {[%emt 00:01:39]} 26. fxg3 {[%clk
00:24:40]} {[%emt 00:00:43]} Ba6 {[%clk 00:13:09]} {[%emt 00:03:32]} 27. Nc3
{[%clk 00:23:59]} {[%emt 00:01:10]} Bc4 {[%clk 00:12:30]} {[%emt 00:01:10]} 28.
Qd2 {[%clk 00:22:40]} {[%emt 00:01:48]} cxd4 {[%clk 00:07:58]} {[%emt
00:05:02]} 29. Nxd4 {[%clk 00:19:15]} {[%emt 00:03:55]} Nxd4 {[%clk 00:08:09]}
{[%emt 00:00:20]} 30. Qxd4 {[%clk 00:19:12]} {[%emt 00:00:33]} Bc5 {[%clk
00:08:22]} {[%emt 00:00:16]} 31. Qd2 {[%clk 00:19:35]} {[%emt 00:00:07]} Bf2
{[%clk 00:06:17]} {[%emt 00:02:36]} 32. Rf1 {[%clk 00:17:00]} {[%emt 00:03:04]}
Bxf1 {[%clk 00:06:23]} {[%emt 00:00:24]} 33. Rxf1 {[%clk 00:17:26]} {[%emt
00:00:04]} d4 {[%clk 00:05:56]} {[%emt 00:00:57]} 34. Nd1 {[%clk 00:12:24]}
{[%emt 00:05:32]} Be3 {[%clk 00:06:03]} {[%emt 00:00:23]} 35. Nxe3 {[%clk
00:12:46]} {[%emt 00:00:08]} dxe3 {[%clk 00:06:28]} {[%emt 00:00:06]} 36. Qxe3
{[%clk 00:13:09]} {[%emt 00:00:06]} Rxf1 {[%clk 00:06:03]} {[%emt 00:00:55]} 37.
Bxf1 {[%clk 00:13:33]} {[%emt 00:00:07]} Qd5 {[%clk 00:04:47]} {[%emt
00:01:45]} 38. e6 {[%clk 00:11:13]} {[%emt 00:02:50]} Qxa2+ {[%clk 00:04:04]}
{[%emt 00:01:14]} 39. Kh3 {[%clk 00:11:37]} {[%emt 00:00:05]} Qa1 {[%clk
00:02:38]} {[%emt 00:01:56]} 40. Bg2 {[%clk 00:11:36]} {[%emt 00:00:31]} Qf6
{[%clk 00:01:16]} {[%emt 00:01:52]} 41. Kh2 {[%clk 00:11:10]} {[%emt 00:00:56]}
Re8 {[%clk 00:19:39]} {[%emt 00:12:06]} 42. Bd5 {[%clk 00:33:43]} {[%emt
00:07:57]} Rc8 {[%clk 00:11:51]} {[%emt 00:08:20]} 43. Qxb6 {[%clk 00:20:01]}
{[%emt 00:14:12]} Rc2+ {[%clk 00:11:35]} {[%emt 00:00:46]} 44. Bg2 {[%clk
00:20:19]} {[%emt 00:00:10]} Qf3 {[%clk 00:04:54]} {[%emt 00:07:12]} 45. Qc7+
{[%clk 00:17:53]} {[%emt 00:02:56]} Rxc7 {[%clk 00:05:18]} {[%emt 00:00:07]} 46.
Bxf3 {[%clk 00:18:20]} {[%emt 00:00:02]} Rc2+ {[%clk 00:02:38]} {[%emt
00:03:06]} 47. Kh3 {[%clk 00:16:21]} {[%emt 00:02:33]} Rc3 {[%clk 00:02:06]}
{[%emt 00:01:01]} 48. Bd5 {[%clk 00:12:26]} {[%emt 00:04:25]} Kf6 {[%clk
00:00:49]} {[%emt 00:01:47]} 49. Be4 {[%clk 00:11:08]} {[%emt 00:01:48]} Re3
{[%clk 00:00:56]} {[%emt 00:00:23]} 50. Bd5 {[%clk 00:11:02]} {[%emt 00:00:37]}
Ke5 {[%clk 00:01:06]} {[%emt 00:00:20]} 51. Ba2 {[%clk 00:11:13]} {[%emt
00:00:19]} Kd4 {[%clk 00:01:18]} {[%emt 00:00:18]} 52. e7 {[%clk 00:07:04]}
{[%emt 00:04:40]} Rxe7 {[%clk 00:01:34]} {[%emt 00:00:13]} 53. Bb1 {[%clk
00:07:27]} {[%emt 00:00:07]} Re6 {[%clk 00:01:30]} {[%emt 00:00:34]} 54. Kg2
{[%clk 00:07:02]} {[%emt 00:00:55]} Rb6 {[%clk 00:01:52]} {[%emt 00:00:09]} 0-1